Cogmind - Beta 15 @@@ ROGUE MODE // 2025.07.20 @ 05:55:12 Player: shapeshifter Result: Destroyed by AX-8EA(R) with Subdweller Machine Gun Performance ------------- Evolutions (0) 0 Regions Visited (2) 400 Robots Destroyed (3) 15 Value Destroyed (18) 18 Prototype IDs (0) 0 Alien Tech Used (0) 0 Bonus (0) 0 TOTAL SCORE: 433 Bonus ------- None Cogmind --------- Core Integrity 0/250 Matter 228/300 Energy 100/100 System Corruption 0% Temperature Cool (0) Movement Core (150) Ox2 Location -10/Subcaves Parts ------- > --- POWER (1) -------- (None) > --- PROPULSION (2) --- (None) > --- UTILITY (2) ------ Small Storage Unit Seismic Detector > --- WEAPON (2) ------- Light Assault Rifle Light Assault Rifle > --- INVENTORY (8) ---- Light Treads Light Treads Hover Unit Peak State ------------ > --- POWER ------------ Ion Engine > --- PROPULSION ------- Light Treads Light Treads > --- UTILITY ---------- Small Storage Unit Seismic Detector > --- WEAPON ----------- Small Laser Light Assault Rifle > --- INVENTORY -------- Ion Engine Aluminum Leg Aluminum Leg Light Assault Rifle [Rating: 7] Favorites ----------- Power Ion Engine Engine Ion Engine Propulsion Light Treads Treads Light Treads Leg Aluminum Leg Hover Unit Hover Unit Utility Small Storage Unit Device Seismic Detector Storage Small Storage Unit Weapon Small Laser Energy Gun Small Laser Ballistic Gun Assault Rifle Build | -11 -10 -10 ------- Run | Yrd Mat Sub Slots Evolved . | . . . Power . | . . . Propulsion . | . . . Utility . | . . . Weapon . | . . . Parts Attached 13 | 7 3 3 Power 2 | 1 . 1 Engine 2 | 1 . 1 Core . | . . . Reactor . | . . . Propulsion 5 | 2 2 1 Treads 2 | 2 . . Leg 2 | . 1 1 Wheel . | . . . Hover 1 | . 1 . Flight . | . . . Utility 2 | 2 . . Device 1 | 1 . . Storage 1 | 1 . . Processor . | . . . Hackware . | . . . Protection . | . . . Artifact . | . . . Weapon 4 | 2 1 1 Energy Gun 1 | 1 . . Energy Cannon . | . . . Ballistic Gun 3 | 1 1 1 Ballistic Cannon . | . . . Launcher . | . . . Special Weapon . | . . . Impact Weapon . | . . . Slashing Weapon . | . . . Piercing Weapon . | . . . Special Melee Weapon . | . . . Unidentified Prototypes . | . . . Parts Lost 6 | . . 6 Power 2 | . . 2 Propulsion 2 | . . 2 Utility . | . . . Weapon 2 | . . 2 Highest Loss Streak 3 | . . 3 To Critical Strikes 1 | . . 1 Average Backups 4 | 2 5 4 Power . | . 1 . Propulsion 2 | 1 2 3 Utility . | . . . Weapon 1 | . 1 1 Tool/Special . | . . . Unused Backups . | . . . Power . | . . . Propulsion . | . . . Utility . | . . . Weapon . | . . . Tool/Special . | . . . Average Slot Usage (%) 91 | . 100 82 Engine 11 | . 14 9 Treads 15 | . 28 . Leg 9 | . . 20 Hover 1 | . . 2 Device 14 | . 14 14 Storage 14 | . 14 14 Energy Gun 8 | . 14 2 Ballistic Gun 16 | . 14 19 Peak Build Rating 7 | 7 7 7 Average Rating 6 | 5 7 5 On Entrance 4 | . 7 7 Naked Turns . | . . . Heaviest Build 14 | 13 14 14 Greatest Support 40 | 40 40 20 Greatest Overweight (x) 2 | . 2 2 Average Overweight (x) . | . . . Largest Inventory Capacity 8 | 8 8 8 Average Capacity 7 | 7 8 8 Most Carried 6 | 5 6 6 Average Carried 4 | 3 5 4 Final Capacity 8 | 8 8 8 Final Carried 6 | 4 6 3 Class Distribution -------------------- 100% | Mutant Dominant Class ---------------- Mutant | -10/Materials Mutant | -10/Subcaves Resources | -11 -10 -10 ----------- Run | Yrd Mat Sub Matter Collected 299 | 274 25 . Remotely . | . . . Salvage Created 151 | 123 28 . Parts 8 | 4 4 . Haulers Intercepted . | . . . Recyclers Shooed 1 | . 1 . Parts Field Recycled . | . . . Retrieved Matter . | . . . Parts Self-Destructed 4 | . . 4 Prevented . | . . . Kills | -11 -10 -10 ------- Run | Yrd Mat Sub Combat Hostiles Destroyed . | . . . Classes Destroyed 3 | 2 1 . Builder 1 | . 1 . Tunneler 1 | 1 . . Recycler 1 | 1 . . Best Kill Streak 1 | 1 1 . Combat Bots Only . | . . . Max Kills in Single Turn 1 | 1 1 . Gunslinging . | . . . Exploded . | . . . Melee . | . . . Uniques/NPCs Destroyed . | . . . Combat | -11 -10 -10 -------- Run | Yrd Mat Sub Hostile Shots Fired 88 | . . 88 Missed 39 | . . 39 Hits 49 | . . 49 Projectile 49 | . . 49 Critical Strikes 1 | . . 1 Damage Taken 1012 | . . 1012 Core 259 | . . 259 Absorbed by Shields . | . . . Core Remaining (%) 100 | 100 . . Volleys Fired 28 | 4 10 14 Largest 2 | 2 2 1 Hottest 60 | 60 60 20 Shots Fired 42 | 8 20 14 Gun 42 | 8 20 14 Cannon . | . . . Launcher . | . . . Special . | . . . Kinetic 28 | 4 10 14 Thermal 14 | 4 10 . Explosive . | . . . Electromagnetic . | . . . Robot Hit Streak 4 | 2 4 3 Robot Miss Streak 4 | 2 4 1 Penetration Max . | . . . Secondary Targets . | . . . Shots Hit Robots 18 | 3 9 6 Core Hits 6 | 3 2 1 Critical Kills . | . . . Critical Parts Destroyed . | . . . Critical Strikes . | . . . Melee Attacks . | . . . Impact . | . . . Slashing . | . . . Piercing . | . . . Sneak Attacks . | . . . Combat Hostiles . | . . . Follow-up Attacks . | . . . Damage Inflicted 235 | 39 109 87 Guns 231 | 39 105 87 Cannons . | . . . Explosions . | . . . Melee . | . . . Ramming 4 | . 4 . Kinetic 164 | 16 61 87 Thermal 67 | 23 44 . Explosive . | . . . Electromagnetic . | . . . Impact . | . . . Slashing . | . . . Piercing . | . . . Highest Corruption . | . . . Average Corruption . | . . . Corruption Purged . | . . . Corruption Blocked . | . . . Overload Shots . | . . . Overflow Damage . | . . . Projectiles . | . . . Explosions . | . . . Melee . | . . . Knockbacks . | . . . Impact . | . . . Kinetic . | . . . Secondary . | . . . Self-Inflicted Damage . | . . . Shots . | . . . Rammed 1 | . 1 . Targets Rammed 1 | . 1 . Kicked . | . . . Crushed . | . . . Highest Temperature 40 | 20 40 . Average Temperature 17 | 13 19 . Received Heat Transfer 210 | . . 210 Siege Activations . | . . . Martial Activations . | . . . Shielding Activations . | . . . Robots Disrupted . | . . . Combat Hostiles . | . . . Robots Corrupted . | . . . Combat Hostiles . | . . . Parts Fried . | . . . Impact Corruptions . | . . . Robots Melted . | . . . Combat Hostiles . | . . . Parts Melted . | . . . Heat Transferred 150 | 50 100 . Parts Sabotaged . | . . . Parts Stolen . | . . . Parts Stripped . | . . . Power Chain Reactions . | . . . Alert | -11 -10 -10 ------- Run | Yrd Mat Sub Maximum Alert Level . | . . . Low Security (%) 100 | 100 100 . Level 1 . | . . . Level 2 . | . . . Level 3 . | . . . Level 4 . | . . . Level 5 . | . . . High Security . | . . . Max Security . | . . . Peak Influence 5 | 5 5 . Initial . | . . . Average . | . . . Influence Increases 31 | 10 6 15 Destroy 0b10 Robot/NC 15 | 10 5 . Destroy Structure 1 | . 1 . Lose Combat Pursuer 15 | . . 15 Influence Decreases 31 | 10 6 15 Time Decay 31 | 10 6 15 Squads Dispatched . | . . . Investigation . | . . . Extermination . | . . . Reinforcement . | . . . Assault . | . . . Garrison . | . . . Intercept . | . . . Searches Triggered . | . . . Construction Impeded . | . . . Haulers Reinforced . | . . . Active Scanning Responses . | . . . Cargo Convoy Interrupts . | . . . Stealth | -11 -10 -10 --------- Run | Yrd Mat Sub Distress Signals . | . . . Communications Jammed . | . . . Distress Signals . | . . . Times Spotted 16 | . 4 12 Peak Tracking Total 6 | . 2 6 Tactical Retreats 3 | . . 3 Traps | -11 -10 -10 ------- Run | Yrd Mat Sub Traps Triggered . | . . . Indirectly . | . . . Trap Hack Attempts . | . . . Triggered . | . . . Disarmed . | . . . Reprogrammed . | . . . Reused . | . . . Traps Extracted . | . . . Installed . | . . . Triggered . | . . . Machines | -11 -10 -10 ---------- Run | Yrd Mat Sub Machines Disabled . | . . . Max in Single Turn . | . . . Machines Repaired . | . . . Machines Dismantled . | . . . Machines Sabotaged . | . . . Overloaded Fab Kills . | . . . Hacking | -11 -10 -10 --------- Run | Yrd Mat Sub Machines Accessed . | . . . Terminals . | . . . Fabricators . | . . . Repair Stations . | . . . Recycling Units . | . . . Scanalyzers . | . . . Garrison Access . | . . . Total Hacks . | . . . Successful . | . . . Failed . | . . . Catastrophic . | . . . Database Lockouts . | . . . Manual . | . . . Terminals . | . . . Fabricators . | . . . Repair Stations . | . . . Recycling Units . | . . . Scanalyzers . | . . . Garrison Access . | . . . Terminal Hacks . | . . . Fabricator Hacks . | . . . Repair Station Hacks . | . . . Recycling Unit Hacks . | . . . Scanalyzer . | . . . Garrison Access Hacks . | . . . Unauthorized Hacks . | . . . Terminals . | . . . Fabricators . | . . . Repair Stations . | . . . Recycling Units . | . . . Scanalyzers . | . . . Garrison Access . | . . . Data Cores Recovered . | . . . Used . | . . . Hacking Detections . | . . . Full Trace Events . | . . . Feedback Events . | . . . Feedback Blocked . | . . . Robot Schematics Acquired . | . . . Robots Built . | . . . Authchips . | . . . Time . | . . . Total Robot Build Rating . | . . . Part Schematics Acquired . | . . . Parts Built . | . . . Authchips . | . . . Time . | . . . Total Part Build Rating . | . . . Parts Repaired . | . . . Time . | . . . Parts Recycled . | . . . Recycled Matter . | . . . Retrieved Matter . | . . . Retrieved Components . | . . . Parts Scanalyzed . | . . . Part Schematics Acquired . | . . . Parts Damaged . | . . . Bothacking | -11 -10 -10 ------------ Run | Yrd Mat Sub Used RIF Installer . | . . . Robots Hacked . | . . . Non-combat . | . . . Combat . | . . . Robot Hacks Applied . | . . . Relay Couplers Released . | . . . Fabnet Peak Effective % . | . . . Robots Rewired . | . . . Allies Hacked . | . . . Hacks Repelled . | . . . Allies | -11 -10 -10 -------- Run | Yrd Mat Sub Total Allies . | . . . Largest Group . | . . . Highest-Rated Group . | . . . Highest-Rated Ally . | . . . Total Orders . | . . . Ally Attacks . | . . . Total Damage . | . . . Kills . | . . . Allies Corrupted . | . . . Allies Melted . | . . . Intel | -11 -10 -10 ------- Run | Yrd Mat Sub Active Infowar (turns) 644 | 49 321 274 Seismic 644 | 49 321 274 Robot Analysis Total . | . . . Derelict Logs Recovered . | . . . Drone Launches . | . . . Drone Recoveries . | . . . Exploration | -11 -10 -10 ------------- Run | Yrd Mat Sub Turns Passed 732 | 137 321 274 Spaces Moved 349 | 65 99 185 Core 11 | 9 . 2 Treads 154 | 56 98 . Legs 157 | . . 157 Wheels . | . . . Hover 27 | . 1 26 Flight . | . . . Fastest Speed 50 | 50 160 120 Average Speed 141 | 144 160 130 Slowest Speed 190 | 160 190 190 Overloaded Moves . | . . . Propulsion Burnouts . | . . . Robots Hopped . | . . . Potential Cave-ins . | . . . Cave-ins Triggered . | . . . Exploration Rate (%) 17 | 5 22 24 Regions Visited 2 Branch Regions 1 Pre-discovered Areas . | . . . Known Exits Taken . | . . . Unknown Exits Taken 2 | 1 1 . Scrap Searched . | . . . Spaces Dug . | . . . Terrain Destroyed . | . . . Melee . | . . . Projectile . | . . . AOE . | . . . Terrain Rammed . | . . . Walls Destroyed . | . . . Machines Disabled . | . . . Actions | -11 -10 -10 --------- Run | Yrd Mat Sub Total 545 | 101 241 203 Wait 142 | 15 127 . Move 347 | 64 98 185 Hop . | . . . Pick Up 13 | 11 2 . Fast Attach . | . . . Attach 10 | 7 . 3 Detach . | . . . Swap 4 | . 3 1 Drop . | . . . Fire 28 | 4 10 14 Melee . | . . . Ram . | . . . Kick . | . . . Crush 1 | . 1 . Escape Stasis . | . . . Rewire . | . . . Trap . | . . . Miscellaneous . | . . . Route ------- -11/Scrapyard -10/Materials (discovered 2 exits: [*Mat] / [*Sub]) -10/Subcaves History --------- Turn | Location | Event 7 | -11/Scrapyard | Discovered new exit (range 15) 138 | -11/Scrapyard | Entered Materials 286 | -10/Materials | Discovered new exit (range 16) 310 | -10/Materials | Build established: Mutant 417 | -10/Materials | Discovered new exit (range 12) 459 | -10/Materials | Entered Subcaves 460 | -10/Subcaves | Approached by a straggling Scientist 566 | -10/Subcaves | Core integrity fell below 50% 600 | -10/Subcaves | Shifting Twisted Machinery released Sub. Optics 603 | -10/Subcaves | Shifting Twisted Machinery released Sub. Monowheel 657 | -10/Subcaves | Core integrity fell below 20% 664 | -10/Subcaves | Lost 3 parts (1p1n1w) 666 | -10/Subcaves | A swath of the cavern ceiling suddenly collapsed 729 | -10/Subcaves | A Subdweller sparked back to life 729 | -10/Subcaves | A Subdweller sparked back to life 729 | -10/Subcaves | A Subdweller sparked back to life 733 | -10/Subcaves | Destroyed by AX-8EA(R) with Subdweller Machine Gun Last Messages --------------- 00500_ Sml. Laser destroyed. 00524_ Critical hit (Destroy). 00524_ Ion Engine destroyed. Sub. Optics falls loose from the Twisted Machinery. Sub. Monowheel falls loose from the Twisted Machinery. 00628_ Aluminum Leg destroyed. 00631_ Ion Engine destroyed. 00633_ Assault Rifle destroyed. A swath of the cavern ceiling suddenly collapses. 00687_ S-10 Pest destroyed. 00729_ XN-BTM(R) creaks and sparks as it begins to move. 00729_ PO-6T5(R) creaks and sparks as it begins to move. 00729_ AX-8EA(R) creaks and sparks as it begins to move. 00730_ Aluminum Leg destroyed. Map ----- +----------------------------------------------------+ | | | ?????????????????????????????????????????????????? | | ?????????????????????????????????????????????????? | | ?????????????????????????????????????????????????? | | ?????????????????????????????????????????????????? | | ?????????????????????????????????????????????????? | | ?????????????????????????????????????????????????? | | ?????????????????????????????????????????????????? | | ?????????????????????????????????????????????????? | | ?????????????????????????????????????????????????? | | ?????????????????????????????????????????????????? | | ?????????????????????????????????????????????????? | | ?????????????????????????????????????????????????? | | ???????????????????????######????????????????????? | | ??????????????????????##< #????????????????????? | | ??????????????????????# <#????????????????????? | | ??????????????????????# < ?????????????????????? | | ?????????????????????##<< ?????????????????????? | | ????????????????????## R< ?????????????????????? | | ?????????????????#### RR&####??????????????????? | | ?????????????????# # ###????????????????? | | ?????????????????# ###??????????????? | | ??????????????????# ##?????????????? | | ??????????? # ## # ####???????#### | | ??????????????# # #####?## | | ???????????????# @ ### | | ???????????????# # # # ? | | ??????????????# ???#### ###### ?? | | ?????????????????????# ???## ## ### #?? | | ?????????????????????## ???# ##???### #?? | | ?????????????????????? ??## #???### #??? | | ?????????????????????## ?## #??## ###? | | ?????????????????????? ?# ####??# ## | | ??????????????????????# ??## #?????# | | ?????????????????????? ???### ####### | | ?????????????????????? ????## # ## # | | ??????????????????????# ????# ## | | ??????????????????????# ????### #### | | ?????????????????????? ???????# # ## #### ###??## | | ??????????????????????????????### ####??###?????## | | ???????????????????????????????? ??????????????? | | ??????????????????????????????? ??????????????? | | ??????????????????????????????# ?????????????? | | ??????????????????????????????? ?????????????? | | ??????????????????????????????# ##????????????? | | ?????????????????????????????? #?????????????? | | ?????????????????????????????? ?????????????? | | ?????????????????????????????## ?????????????? | | ??????????????????????????????## ?????????????? | | ???????????????????????????????? ?????????????? | +----------------------------------------------------+ Best States ------------- Heat Dissipation 25 Energy Generation 10 Energy Capacity 250 Matter Stores 300 Matter Capacity 300 Sight Range 16 Terrain Scan Density 10 Evasion (%) 55 Recoil Reduction 2 Item Schematics ----------------- None Robot Schematics ------------------ None Fabricated ------------ Nothing Repaired ---------- Nothing Alien Tech Used ----------------- None Achievements -------------- None Challenges ------------ None Game ------ Seed StormSapperMultirail Manual? 0 Play Time 00:08:08 Cumulative 17.5 hours Start 2025.07.20 @ 05:48:45 End 2025.07.20 @ 05:55:12 Sessions 1 Manual Loads 0 Difficulty Rogue Special Mode None Game No. 52 Rogue 52 Adventurer 0 Explorer 0 Win Type - Total 0 Types 0/0/0/0/0/0/0/0/0/0 Lore% 18 Gallery% 20 Achievement% 16 Wizard Run 0 Options --------- Layout 1 ASCII 0 Keyboard 0 Movement Mouse Keybinds 0 Fullscreen 1 Font 24/Smallcaps Map View 50x40 Zoom Use 0% Tactical HUD 1 Map Filters NONE Filters NONE Steam 1 RUN: ccd2be14-515e-447d-9c2a-12d08574479a